[Event "Titled Tuesday Blitz March 01 Late 2022"]
[White "Zhou, Qiyu"]
[Black "Aldokhin, Ivan"]
[WhiteFideId "505161"]
[BlackFideId "24115720"]
[WhiteElo "1925"]
[BlackElo "2231"]
[Result "0-1"]
[Round "02"]
[TimeControl "180+1"]
[Date "2022.03.02"]
[WhiteClock "0:00:01"]
[BlackClock "0:01:08"]

1. e4 {[%clk 0:03:00]}  c5 {[%clk 0:02:59]} 2. Nf3 {[%clk 0:03:00]}  e6 {[%clk 0:03:00]} 3. d4 {[%clk 0:03:00]}  cxd4 {[%clk 0:03:01]} 4. Nxd4 {[%clk 0:03:01]}  a6 {[%clk 0:03:02]} 5. c4 {[%clk 0:03:01]}  Qc7 {[%clk 0:03:02]} 6. Nc3 {[%clk 0:03:02]}  Nf6 {[%clk 0:03:03]} 7. Be3 {[%clk 0:03:00]}  d6 {[%clk 0:03:03]} 8. Bd3 {[%clk 0:03:01]}  Be7 {[%clk 0:03:04]} 9. O-O {[%clk 0:03:01]}  O-O {[%clk 0:03:04]} 10. Rc1 {[%clk 0:03:02]}  b6 {[%clk 0:03:04]} 11. f3 {[%clk 0:03:03]}  Bb7 {[%clk 0:03:04]} 12. Qd2 {[%clk 0:03:03]}  Nbd7 {[%clk 0:03:05]} 13. Rfd1 {[%clk 0:03:04]}  Rac8 {[%clk 0:03:05]} 14. Bf1 {[%clk 0:03:03]}  Qb8 {[%clk 0:03:06]} 15. b4 {[%clk 0:03:02]}  Bd8 {[%clk 0:03:06]} 16. a3 {[%clk 0:03:02]}  Bc7 {[%clk 0:03:05]} 17. h3 {[%clk 0:02:52]}  Rfe8 {[%clk 0:03:01]} 18. Nb3 {[%clk 0:02:51]}  Ne5 {[%clk 0:02:34]} 19. Qf2 {[%clk 0:02:38]}  Nfd7 {[%clk 0:02:31]} 20. f4 {[%clk 0:01:54]}  Ng6 {[%clk 0:02:28]} 21. Be2 {[%clk 0:01:05]}  d5 {[%clk 0:02:21]} 22. f5 {[%clk 0:01:02]}  Bg3 {[%clk 0:02:10]} 23. Qf3 {[%clk 0:00:56]}  Nh4 {[%clk 0:02:01]} 24. Qf1 {[%clk 0:00:34]}  exf5 {[%clk 0:02:00]} 25. Nxd5 {[%clk 0:00:32]}  Rxe4 {[%clk 0:01:56]} 26. Bg5 {[%clk 0:00:26]}  Bxd5 {[%clk 0:01:39]} 27. Rxd5 {[%clk 0:00:21]}  Nf6 {[%clk 0:01:38]} 28. Bxf6 {[%clk 0:00:20]}  gxf6 {[%clk 0:01:38]} 29. Rcd1 {[%clk 0:00:06]}  Kh8 {[%clk 0:01:38]} 30. Bd3 {[%clk 0:00:04]}  Rf4 {[%clk 0:01:37]} 31. Qe2 {[%clk 0:00:03]}  Rg8 {[%clk 0:01:36]} 32. Rf1 {[%clk 0:00:01]}  Bh2+ {[%clk 0:01:32]} 33. Kh1 {[%clk 0:00:01]}  Rxf1+ {[%clk 0:01:30]} 34. Qxf1 {[%clk 0:00:02]}  Rxg2 {[%clk 0:01:28]} 35. Qxg2 {[%clk 0:00:02]}  Nxg2 {[%clk 0:01:28]} 36. Kxg2 {[%clk 0:00:02]}  Qg3+ {[%clk 0:01:28]} 37. Kf1 {[%clk 0:00:03]}  Qxh3+ {[%clk 0:01:24]} 38. Ke2 {[%clk 0:00:04]}  Be5 {[%clk 0:01:25]} 39. Rd8+ {[%clk 0:00:03]}  Kg7 {[%clk 0:01:25]} 40. Rd5 {[%clk 0:00:03]}  f4 {[%clk 0:01:24]} 41. Nd2 {[%clk 0:00:03]}  Qe3+ {[%clk 0:01:22]} 42. Kd1 {[%clk 0:00:03]}  f3 {[%clk 0:01:21]} 43. Nf1 {[%clk 0:00:03]}  Qf4 {[%clk 0:01:14]} 44. Nd2 {[%clk 0:00:02]}  f2 {[%clk 0:01:14]} 45. Nf1 {[%clk 0:00:02]}  h5 {[%clk 0:01:10]} 46. Ke2 {[%clk 0:00:02]}  h4 {[%clk 0:01:10]} 47. Bc2 {[%clk 0:00:01]}  Qxc4+ {[%clk 0:01:08]} 48. Rd3 {[%clk 0:00:01]} 0-1


[Site "https://www.chess.com"]

[Event "Titled Tuesday Blitz March 01 Late 2022"]
[White "Zhurbinsky, David"]
[Black "Celestino, Rafael Teixeira"]
[WhiteFideId "2072904"]
[BlackFideId "2108925"]
[WhiteElo "2529"]
[BlackElo "2310"]
[Result "1/2-1/2"]
[Round "02"]
[TimeControl "180+1"]
[Date "2022.03.02"]
[WhiteClock "0:00:06"]
[BlackClock "0:00:22"]

1. e4 {[%clk 0:03:00]}  c5 {[%clk 0:02:59]} 2. Nf3 {[%clk 0:03:00]}  Nc6 {[%clk 0:02:59]} 3. c4 {[%clk 0:03:00]}  g6 {[%clk 0:02:56]} 4. d4 {[%clk 0:03:00]}  cxd4 {[%clk 0:02:55]} 5. Nxd4 {[%clk 0:03:01]}  Bg7 {[%clk 0:02:55]} 6. Be3 {[%clk 0:03:01]}  Qb6 {[%clk 0:02:52]} 7. Nb5 {[%clk 0:02:59]}  Qa5+ {[%clk 0:02:50]} 8. N1c3 {[%clk 0:02:59]}  a6 {[%clk 0:02:43]} 9. Nd4 {[%clk 0:02:57]}  Qb4 {[%clk 0:02:34]} 10. Qd2 {[%clk 0:02:37]}  Nf6 {[%clk 0:02:11]} 11. a3 {[%clk 0:02:28]}  Qa5 {[%clk 0:02:11]} 12. b4 {[%clk 0:02:15]}  Nxb4 {[%clk 0:01:53]} 13. Nb3 {[%clk 0:02:09]}  Qe5 {[%clk 0:01:36]} 14. Bd4 {[%clk 0:01:43]}  Nxe4 {[%clk 0:01:07]} 15. Bxe5 {[%clk 0:01:30]}  Nxd2 {[%clk 0:01:07]} 16. Bxg7 {[%clk 0:01:29]}  Nxb3 {[%clk 0:01:07]} 17. axb4 {[%clk 0:01:19]}  Nxa1 {[%clk 0:01:00]} 18. Bxh8 {[%clk 0:01:19]}  f6 {[%clk 0:01:00]} 19. Bg7 {[%clk 0:01:01]}  Kf7 {[%clk 0:00:59]} 20. Bh6 {[%clk 0:01:01]}  Nc2+ {[%clk 0:00:42]} 21. Kd2 {[%clk 0:01:00]}  Nxb4 {[%clk 0:00:43]} 22. Na4 {[%clk 0:00:46]}  b5 {[%clk 0:00:37]} 23. cxb5 {[%clk 0:00:38]}  axb5 {[%clk 0:00:38]} 24. Bxb5 {[%clk 0:00:34]}  Ra5 {[%clk 0:00:36]} 25. Nc3 {[%clk 0:00:25]}  Bb7 {[%clk 0:00:28]} 26. f3 {[%clk 0:00:22]}  Nd5 {[%clk 0:00:27]} 27. Bc4 {[%clk 0:00:21]}  e6 {[%clk 0:00:26]} 28. Nxd5 {[%clk 0:00:17]}  Bxd5 {[%clk 0:00:27]} 29. Bd3 {[%clk 0:00:13]}  Ra2+ {[%clk 0:00:24]} 30. Ke3 {[%clk 0:00:12]}  Rxg2 {[%clk 0:00:24]} 31. Bf4 {[%clk 0:00:12]}  e5 {[%clk 0:00:21]} 32. Bg3 {[%clk 0:00:13]}  d6 {[%clk 0:00:20]} 33. Ra1 {[%clk 0:00:05]}  f5 {[%clk 0:00:20]} 34. f4 {[%clk 0:00:05]}  Ke6 {[%clk 0:00:20]} 35. fxe5 {[%clk 0:00:05]}  dxe5 {[%clk 0:00:20]} 36. Ra6+ {[%clk 0:00:06]}  Ke7 {[%clk 0:00:20]} 37. Bxe5 {[%clk 0:00:06]}  Rg1 {[%clk 0:00:18]} 38. Kd4 {[%clk 0:00:06]}  Bf3 {[%clk 0:00:18]} 39. Bf6+ {[%clk 0:00:05]}  Kd7 {[%clk 0:00:17]} 40. Bb5+ {[%clk 0:00:06]}  Kc7 {[%clk 0:00:18]} 41. Be5+ {[%clk 0:00:06]}  Kb7 {[%clk 0:00:18]} 42. Rf6 {[%clk 0:00:05]}  Rd1+ {[%clk 0:00:18]} 43. Kc5 {[%clk 0:00:06]}  Rc1+ {[%clk 0:00:18]} 44. Bc4 {[%clk 0:00:06]}  Be2 {[%clk 0:00:18]} 45. Rf7+ {[%clk 0:00:07]}  Kc8 {[%clk 0:00:19]} 46. Rc7+ {[%clk 0:00:03]}  Kd8 {[%clk 0:00:19]} 47. Kd4 {[%clk 0:00:03]}  Rd1+ {[%clk 0:00:18]} 48. Ke3 {[%clk 0:00:03]}  Bxc4 {[%clk 0:00:19]} 49. Rxc4 {[%clk 0:00:04]}  Rd5 {[%clk 0:00:19]} 50. Rd4 {[%clk 0:00:04]}  Rxd4 {[%clk 0:00:19]} 51. Kxd4 {[%clk 0:00:05]}  Ke7 {[%clk 0:00:20]} 52. Ke3 {[%clk 0:00:05]}  Ke6 {[%clk 0:00:20]} 53. Bf4 {[%clk 0:00:06]}  Kf6 {[%clk 0:00:20]} 54. h4 {[%clk 0:00:06]}  Kg7 {[%clk 0:00:20]} 55. Be5+ {[%clk 0:00:06]}  Kh6 {[%clk 0:00:20]} 56. Bf6 {[%clk 0:00:06]}  Kh5 {[%clk 0:00:21]} 57. Kf4 {[%clk 0:00:06]}  h6 {[%clk 0:00:21]} 58. Be7 {[%clk 0:00:06]}  g5+ {[%clk 0:00:20]} 59. hxg5 {[%clk 0:00:04]}  hxg5+ {[%clk 0:00:21]} 60. Bxg5 {[%clk 0:00:04]}  Kg6 {[%clk 0:00:21]} 61. Bd8 {[%clk 0:00:05]}  Kf7 {[%clk 0:00:22]} 62. Kxf5 {[%clk 0:00:06]} 1/2-1/2


[Site "https://www.chess.com"]

[Event "Titled Tuesday Blitz March 01 Late 2022"]
[White "Abdyzhapar, Asylbek"]
[Black "Guseinov, Gadir"]
[WhiteFideId "13800337"]
[BlackFideId "13401378"]
[WhiteElo "2331"]
[BlackElo "2581"]
[Result "0-1"]
[Round "03"]
[TimeControl "180+1"]
[Date "2022.03.01"]
[WhiteClock "0:00:31"]
[BlackClock "0:01:11"]

1. d4 {[%clk 0:03:00]}  Nf6 {[%clk 0:02:58]} 2. c4 {[%clk 0:02:59]}  g6 {[%clk 0:02:59]} 3. Nc3 {[%clk 0:02:59]}  Bg7 {[%clk 0:02:59]} 4. e4 {[%clk 0:03:00]}  d6 {[%clk 0:03:00]} 5. h3 {[%clk 0:03:00]}  O-O {[%clk 0:02:59]} 6. Be3 {[%clk 0:03:00]}  Nc6 {[%clk 0:02:47]} 7. d5 {[%clk 0:02:52]}  Nb4 {[%clk 0:02:47]} 8. Nf3 {[%clk 0:02:41]}  e6 {[%clk 0:02:41]} 9. a3 {[%clk 0:02:41]}  Na6 {[%clk 0:02:40]} 10. Be2 {[%clk 0:02:39]}  exd5 {[%clk 0:02:37]} 11. exd5 {[%clk 0:02:35]}  Nc5 {[%clk 0:02:33]} 12. O-O {[%clk 0:02:33]}  Re8 {[%clk 0:02:30]} 13. Nd4 {[%clk 0:02:26]}  a5 {[%clk 0:02:17]} 14. b4 {[%clk 0:02:25]}  axb4 {[%clk 0:02:08]} 15. axb4 {[%clk 0:02:26]}  Rxa1 {[%clk 0:02:08]} 16. Qxa1 {[%clk 0:02:27]}  Nce4 {[%clk 0:02:09]} 17. Nxe4 {[%clk 0:02:14]}  Nxe4 {[%clk 0:02:07]} 18. Bd3 {[%clk 0:02:10]}  Qh4 {[%clk 0:01:47]} 19. Qc1 {[%clk 0:01:36]}  Nxf2 {[%clk 0:01:32]} 20. Bxf2 {[%clk 0:00:59]}  Bxd4 {[%clk 0:01:31]} 21. Qd2 {[%clk 0:00:53]}  Bxh3 {[%clk 0:01:13]} 22. gxh3 {[%clk 0:00:40]}  Qg3+ {[%clk 0:01:12]} 23. Kh1 {[%clk 0:00:41]}  Qxh3+ {[%clk 0:01:12]} 24. Kg1 {[%clk 0:00:41]}  Re3 {[%clk 0:01:12]} 25. Be4 {[%clk 0:00:31]}  Rg3+ {[%clk 0:01:11]} 0-1


[Site "https://www.chess.com"]

[Event "Titled Tuesday Blitz March 01 Late 2022"]
[White "Adewumi, Tanitoluwa"]
[Black "Dubov, Daniil"]
[WhiteFideId "30966396"]
[BlackFideId "24126055"]
[WhiteElo "2537"]
[BlackElo "2791"]
[Result "1-0"]
[Round "03"]
[TimeControl "180+1"]
[Date "2022.03.01"]
[WhiteClock "0:00:29"]
[BlackClock "0:00:10"]

1. e4 {[%clk 0:02:49]}  e5 {[%clk 0:02:59]} 2. Nf3 {[%clk 0:02:49]}  f5 {[%clk 0:02:58]} 3. Nxe5 {[%clk 0:02:39]}  Nf6 {[%clk 0:02:56]} 4. Bc4 {[%clk 0:02:36]}  Qe7 {[%clk 0:02:49]} 5. d4 {[%clk 0:02:24]}  d6 {[%clk 0:02:36]} 6. Bf7+ {[%clk 0:02:23]}  Kd8 {[%clk 0:02:35]} 7. Bb3 {[%clk 0:02:21]}  Be6 {[%clk 0:02:22]} 8. Bxe6 {[%clk 0:02:03]}  Qxe6 {[%clk 0:02:21]} 9. exf5 {[%clk 0:02:04]}  Qe8 {[%clk 0:02:13]} 10. O-O {[%clk 0:02:01]}  Kc8 {[%clk 0:01:57]} 11. Nd3 {[%clk 0:01:57]}  Qe4 {[%clk 0:01:53]} 12. Bg5 {[%clk 0:01:47]}  Nbd7 {[%clk 0:01:49]} 13. Nc3 {[%clk 0:01:31]}  Qxf5 {[%clk 0:01:48]} 14. Bxf6 {[%clk 0:01:32]}  Nxf6 {[%clk 0:01:45]} 15. Re1 {[%clk 0:01:32]}  Kd7 {[%clk 0:01:33]} 16. Ne5+ {[%clk 0:01:31]}  Kc8 {[%clk 0:01:32]} 17. Nd3 {[%clk 0:01:27]}  Kd7 {[%clk 0:01:30]} 18. Ne5+ {[%clk 0:01:06]}  Kc8 {[%clk 0:01:29]} 19. Qf3 {[%clk 0:01:05]}  Qxf3 {[%clk 0:01:26]} 20. Nxf3 {[%clk 0:01:05]}  Kd7 {[%clk 0:01:26]} 21. Rad1 {[%clk 0:01:04]}  Be7 {[%clk 0:01:24]} 22. Ne5+ {[%clk 0:01:03]}  Kc8 {[%clk 0:01:18]} 23. Ng6 {[%clk 0:01:00]}  hxg6 {[%clk 0:01:16]} 24. Rxe7 {[%clk 0:01:01]}  Rg8 {[%clk 0:01:16]} 25. Rde1 {[%clk 0:01:01]}  a6 {[%clk 0:00:46]} 26. Rf7 {[%clk 0:01:01]}  Re8 {[%clk 0:00:46]} 27. Rxe8+ {[%clk 0:00:55]}  Nxe8 {[%clk 0:00:47]} 28. Nd5 {[%clk 0:00:55]}  b5 {[%clk 0:00:44]} 29. Ne7+ {[%clk 0:00:49]}  Kb7 {[%clk 0:00:39]} 30. Nxg6 {[%clk 0:00:47]}  b4 {[%clk 0:00:35]} 31. h4 {[%clk 0:00:42]}  a5 {[%clk 0:00:35]} 32. Rf8 {[%clk 0:00:39]}  a4 {[%clk 0:00:34]} 33. a3 {[%clk 0:00:37]}  bxa3 {[%clk 0:00:25]} 34. bxa3 {[%clk 0:00:37]}  Kc6 {[%clk 0:00:23]} 35. c4 {[%clk 0:00:35]}  Rb8 {[%clk 0:00:20]} 36. h5 {[%clk 0:00:29]}  Rb1+ {[%clk 0:00:19]} 37. Kh2 {[%clk 0:00:29]}  Nf6 {[%clk 0:00:19]} 38. Rxf6 {[%clk 0:00:25]}  gxf6 {[%clk 0:00:18]} 39. h6 {[%clk 0:00:26]}  Rb8 {[%clk 0:00:15]} 40. h7 {[%clk 0:00:26]}  d5 {[%clk 0:00:16]} 41. Ne7+ {[%clk 0:00:27]}  Kd6 {[%clk 0:00:10]} 42. Ng8 {[%clk 0:00:25]}  dxc4 {[%clk 0:00:08]} 43. h8=Q {[%clk 0:00:25]}  c3 {[%clk 0:00:08]} 44. Qxf6+ {[%clk 0:00:25]}  Kd5 {[%clk 0:00:09]} 45. Qe5+ {[%clk 0:00:25]}  Kc4 {[%clk 0:00:09]} 46. Qxc7+ {[%clk 0:00:26]}  Kd3 {[%clk 0:00:09]} 47. Qxb8 {[%clk 0:00:27]}  c2 {[%clk 0:00:10]} 48. Qc7 {[%clk 0:00:28]}  Kd2 {[%clk 0:00:10]} 49. Qxc2+ {[%clk 0:00:28]}  Kxc2 {[%clk 0:00:10]} 50. d5 {[%clk 0:00:29]} 1-0


[Site "https://www.chess.com"]

[Event "Titled Tuesday Blitz March 01 Late 2022"]
[White "Antonova, Nadezhda"]
[Black "Mikhalsky, Vladimir"]
[WhiteFideId "14700182"]
[BlackFideId "14144352"]
[WhiteElo "1765"]
[BlackElo "2248"]
[Result "1-0"]
[Round "03"]
[TimeControl "180+1"]
[Date "2022.03.02"]
[WhiteClock "0:00:10"]
[BlackClock "0:00:01"]

1. Nf3 {[%clk 0:02:59]}  c5 {[%clk 0:02:59]} 2. b3 {[%clk 0:02:59]}  Nc6 {[%clk 0:02:55]} 3. Bb2 {[%clk 0:02:59]}  d6 {[%clk 0:02:55]} 4. d4 {[%clk 0:02:59]}  cxd4 {[%clk 0:02:53]} 5. Nxd4 {[%clk 0:02:58]}  e5 {[%clk 0:02:52]} 6. Nxc6 {[%clk 0:02:57]}  bxc6 {[%clk 0:02:52]} 7. g3 {[%clk 0:02:57]}  Be6 {[%clk 0:02:30]} 8. Bg2 {[%clk 0:02:57]}  Rc8 {[%clk 0:02:26]} 9. O-O {[%clk 0:02:53]}  f5 {[%clk 0:02:19]} 10. c4 {[%clk 0:02:49]}  Nf6 {[%clk 0:02:18]} 11. Nd2 {[%clk 0:02:37]}  e4 {[%clk 0:02:03]} 12. e3 {[%clk 0:02:18]}  d5 {[%clk 0:02:00]} 13. Rc1 {[%clk 0:02:15]}  Bd6 {[%clk 0:01:54]} 14. cxd5 {[%clk 0:02:07]}  cxd5 {[%clk 0:01:53]} 15. Rxc8 {[%clk 0:02:06]}  Bxc8 {[%clk 0:01:53]} 16. Nb1 {[%clk 0:02:00]}  Ba6 {[%clk 0:01:36]} 17. Re1 {[%clk 0:01:59]}  Be7 {[%clk 0:01:31]} 18. Bh3 {[%clk 0:01:53]}  g6 {[%clk 0:01:24]} 19. Nc3 {[%clk 0:01:51]}  O-O {[%clk 0:01:22]} 20. Qd4 {[%clk 0:01:44]}  Qd7 {[%clk 0:01:00]} 21. Rd1 {[%clk 0:01:43]}  Rd8 {[%clk 0:00:55]} 22. Na4 {[%clk 0:01:31]}  Bb5 {[%clk 0:00:48]} 23. Nc3 {[%clk 0:01:18]}  Bc6 {[%clk 0:00:47]} 24. Bf1 {[%clk 0:01:12]}  Ba8 {[%clk 0:00:40]} 25. Bb5 {[%clk 0:01:02]}  Qb7 {[%clk 0:00:34]} 26. Bf1 {[%clk 0:00:42]}  Qb6 {[%clk 0:00:32]} 27. Qd2 {[%clk 0:00:39]}  Bb4 {[%clk 0:00:28]} 28. a3 {[%clk 0:00:37]}  Be7 {[%clk 0:00:27]} 29. b4 {[%clk 0:00:36]}  a5 {[%clk 0:00:26]} 30. Na4 {[%clk 0:00:29]}  Qc7 {[%clk 0:00:25]} 31. Rc1 {[%clk 0:00:28]}  Qd7 {[%clk 0:00:24]} 32. Nb6 {[%clk 0:00:26]}  Qe6 {[%clk 0:00:23]} 33. Nxa8 {[%clk 0:00:21]}  Rxa8 {[%clk 0:00:22]} 34. bxa5 {[%clk 0:00:20]}  Bd8 {[%clk 0:00:21]} 35. Bc3 {[%clk 0:00:19]}  Nd7 {[%clk 0:00:21]} 36. Qd4 {[%clk 0:00:18]}  Bf6 {[%clk 0:00:20]} 37. Qd2 {[%clk 0:00:17]}  Bxc3 {[%clk 0:00:19]} 38. Qxc3 {[%clk 0:00:17]}  Ne5 {[%clk 0:00:19]} 39. Be2 {[%clk 0:00:16]}  Qd6 {[%clk 0:00:17]} 40. Qb4 {[%clk 0:00:15]}  Qe6 {[%clk 0:00:14]} 41. Rc7 {[%clk 0:00:14]}  Nf7 {[%clk 0:00:11]} 42. a6 {[%clk 0:00:10]}  Qd6 {[%clk 0:00:11]} 43. Qb7 {[%clk 0:00:10]}  Rf8 {[%clk 0:00:08]} 44. a7 {[%clk 0:00:10]}  Qxa3 {[%clk 0:00:08]} 45. Bb5 {[%clk 0:00:09]}  Qa1+ {[%clk 0:00:01]} 46. Bf1 {[%clk 0:00:10]} 1-0


[Site "https://www.chess.com"]

[Event "Titled Tuesday Blitz March 01 Late 2022"]
[White "Artemenko, Oleg"]
[Black "Sliwicki, Damian"]
[WhiteFideId "14201798"]
[BlackFideId "1127128"]
[WhiteElo "2287"]
[BlackElo "2084"]
[Result "1/2-1/2"]
[Round "03"]
[TimeControl "180+1"]
[Date "2022.03.02"]
[WhiteClock "0:00:42"]
[BlackClock "0:00:20"]

1. d4 {[%clk 0:02:55]}  Nf6 {[%clk 0:02:58]} 2. Nc3 {[%clk 0:02:55]}  d5 {[%clk 0:02:57]} 3. Bf4 {[%clk 0:02:55]}  a6 {[%clk 0:02:57]} 4. e3 {[%clk 0:02:55]}  e6 {[%clk 0:02:58]} 5. g4 {[%clk 0:02:55]}  Bd6 {[%clk 0:02:50]} 6. g5 {[%clk 0:02:55]}  Ng8 {[%clk 0:02:44]} 7. Nf3 {[%clk 0:02:54]}  Ne7 {[%clk 0:02:19]} 8. h4 {[%clk 0:02:52]}  Nf5 {[%clk 0:02:17]} 9. Bd3 {[%clk 0:02:50]}  Bxf4 {[%clk 0:02:17]} 10. exf4 {[%clk 0:02:49]}  Qd6 {[%clk 0:02:17]} 11. Bxf5 {[%clk 0:02:48]}  exf5 {[%clk 0:02:17]} 12. Qe2+ {[%clk 0:02:48]}  Be6 {[%clk 0:02:15]} 13. Qe5 {[%clk 0:02:47]}  Qxe5+ {[%clk 0:02:05]} 14. dxe5 {[%clk 0:02:48]}  Nc6 {[%clk 0:02:02]} 15. O-O-O {[%clk 0:02:47]}  O-O-O {[%clk 0:02:03]} 16. Ne2 {[%clk 0:02:45]}  h6 {[%clk 0:01:58]} 17. g6 {[%clk 0:02:42]}  fxg6 {[%clk 0:01:55]} 18. Rhg1 {[%clk 0:02:42]}  Bf7 {[%clk 0:01:52]} 19. h5 {[%clk 0:02:43]}  g5 {[%clk 0:01:49]} 20. fxg5 {[%clk 0:02:37]}  hxg5 {[%clk 0:01:50]} 21. Ng3 {[%clk 0:02:30]}  Bxh5 {[%clk 0:01:48]} 22. Nxh5 {[%clk 0:02:26]}  Rxh5 {[%clk 0:01:48]} 23. Nxg5 {[%clk 0:02:27]}  Nxe5 {[%clk 0:01:45]} 24. Ne6 {[%clk 0:02:27]}  Rd6 {[%clk 0:01:37]} 25. Nxg7 {[%clk 0:02:26]}  Rh2 {[%clk 0:01:33]} 26. Nxf5 {[%clk 0:02:26]}  Rd8 {[%clk 0:01:31]} 27. Ne7+ {[%clk 0:02:25]}  Kb8 {[%clk 0:01:30]} 28. Nxd5 {[%clk 0:02:19]}  Rxf2 {[%clk 0:01:29]} 29. Rge1 {[%clk 0:02:16]}  Nc4 {[%clk 0:01:25]} 30. b3 {[%clk 0:02:10]}  Na3 {[%clk 0:01:22]} 31. Ne3 {[%clk 0:02:09]}  Re8 {[%clk 0:01:14]} 32. Rd2 {[%clk 0:02:03]}  Rxd2 {[%clk 0:01:05]} 33. Kxd2 {[%clk 0:02:04]}  Ka7 {[%clk 0:01:05]} 34. c4 {[%clk 0:02:04]}  b5 {[%clk 0:01:01]} 35. Kc3 {[%clk 0:02:04]}  c5 {[%clk 0:00:57]} 36. Kb2 {[%clk 0:01:58]}  b4 {[%clk 0:00:57]} 37. Nc2 {[%clk 0:01:55]}  Rxe1 {[%clk 0:00:53]} 38. Nxe1 {[%clk 0:01:56]}  Kb6 {[%clk 0:00:53]} 39. Nd3 {[%clk 0:01:54]}  Kc6 {[%clk 0:00:53]} 40. Nf2 {[%clk 0:01:53]}  Kb6 {[%clk 0:00:54]} 41. Ne4 {[%clk 0:01:49]}  Kc6 {[%clk 0:00:54]} 42. Kc1 {[%clk 0:01:49]}  Kb6 {[%clk 0:00:54]} 43. Nf6 {[%clk 0:01:49]}  Kc6 {[%clk 0:00:54]} 44. Nd5 {[%clk 0:01:50]}  Kd6 {[%clk 0:00:53]} 45. Nb6 {[%clk 0:01:49]}  Kc6 {[%clk 0:00:52]} 46. Na4 {[%clk 0:01:45]}  Kd6 {[%clk 0:00:50]} 47. Kd2 {[%clk 0:01:42]}  Kc6 {[%clk 0:00:49]} 48. Kd3 {[%clk 0:01:42]}  Nb1 {[%clk 0:00:47]} 49. Kc2 {[%clk 0:01:38]}  Na3+ {[%clk 0:00:47]} 50. Kc1 {[%clk 0:01:38]}  Kd6 {[%clk 0:00:48]} 51. Kd1 {[%clk 0:01:37]}  Kc6 {[%clk 0:00:47]} 52. Kd2 {[%clk 0:01:36]}  Kd6 {[%clk 0:00:47]} 53. Kc1 {[%clk 0:01:37]}  Kc6 {[%clk 0:00:47]} 54. Nb2 {[%clk 0:01:37]}  Kd6 {[%clk 0:00:47]} 55. Nd3 {[%clk 0:01:38]}  Kc6 {[%clk 0:00:47]} 56. Nf4 {[%clk 0:01:28]}  Kd6 {[%clk 0:00:46]} 57. Ng6 {[%clk 0:01:27]}  Kc6 {[%clk 0:00:47]} 58. Kd2 {[%clk 0:01:27]}  Nb1+ {[%clk 0:00:46]} 59. Kd3 {[%clk 0:01:25]}  Nc3 {[%clk 0:00:44]} 60. a4 {[%clk 0:01:25]}  Kd6 {[%clk 0:00:39]} 61. Nh4 {[%clk 0:01:18]}  Ke5 {[%clk 0:00:38]} 62. a5 {[%clk 0:01:16]}  Kd6 {[%clk 0:00:37]} 63. Nf3 {[%clk 0:01:14]}  Na2 {[%clk 0:00:36]} 64. Nd2 {[%clk 0:01:10]}  Nc3 {[%clk 0:00:35]} 65. Nf3 {[%clk 0:01:04]}  Nd1 {[%clk 0:00:31]} 66. Ke4 {[%clk 0:01:02]}  Nf2+ {[%clk 0:00:29]} 67. Kf5 {[%clk 0:01:01]}  Nd3 {[%clk 0:00:29]} 68. Nd2 {[%clk 0:01:01]}  Nc1 {[%clk 0:00:25]} 69. Kf6 {[%clk 0:01:01]}  Nd3 {[%clk 0:00:25]} 70. Ne4+ {[%clk 0:01:01]}  Kc6 {[%clk 0:00:25]} 71. Ke7 {[%clk 0:00:57]}  Nc1 {[%clk 0:00:23]} 72. Nd2 {[%clk 0:00:57]}  Kc7 {[%clk 0:00:23]} 73. Ke6 {[%clk 0:00:57]}  Kc6 {[%clk 0:00:23]} 74. Ke5 {[%clk 0:00:57]}  Nd3+ {[%clk 0:00:22]} 75. Ke4 {[%clk 0:00:58]}  Nc1 {[%clk 0:00:21]} 76. Ke5 {[%clk 0:00:56]}  Nd3+ {[%clk 0:00:21]} 77. Kf6 {[%clk 0:00:57]}  Nc1 {[%clk 0:00:20]} 78. Ke5 {[%clk 0:00:42]} 1/2-1/2


[Site "https://www.chess.com"]

[Event "Titled Tuesday Blitz March 01 Late 2022"]
[White "Astasio Lopez, David"]
[Black "Gulecyuz, Deniz"]
[WhiteFideId "2230208"]
[BlackFideId "30921341"]
[WhiteElo "2355"]
[BlackElo "1925"]
[Result "0-1"]
[Round "03"]
[TimeControl "180+1"]
[Date "2022.03.02"]
[WhiteClock "0:00:03"]
[BlackClock "0:00:13"]

1. d4 {[%clk 0:03:00]}  Nf6 {[%clk 0:02:59]} 2. Nf3 {[%clk 0:03:01]}  g6 {[%clk 0:02:59]} 3. Nbd2 {[%clk 0:03:01]}  Bg7 {[%clk 0:02:59]} 4. e4 {[%clk 0:03:02]}  c5 {[%clk 0:02:56]} 5. e5 {[%clk 0:03:02]}  Nd5 {[%clk 0:02:56]} 6. c4 {[%clk 0:03:02]}  Nc7 {[%clk 0:02:55]} 7. d5 {[%clk 0:03:00]}  d6 {[%clk 0:02:54]} 8. exd6 {[%clk 0:02:58]}  exd6 {[%clk 0:02:55]} 9. Bd3 {[%clk 0:02:57]}  O-O {[%clk 0:02:55]} 10. O-O {[%clk 0:02:57]}  b5 {[%clk 0:02:55]} 11. Rb1 {[%clk 0:02:44]}  bxc4 {[%clk 0:02:54]} 12. Bxc4 {[%clk 0:02:44]}  Nd7 {[%clk 0:02:49]} 13. b3 {[%clk 0:02:45]}  Nb6 {[%clk 0:02:41]} 14. Ne4 {[%clk 0:02:37]}  Bf5 {[%clk 0:02:38]} 15. Re1 {[%clk 0:02:36]}  Re8 {[%clk 0:02:30]} 16. Qd3 {[%clk 0:02:34]}  Qe7 {[%clk 0:02:04]} 17. Nfd2 {[%clk 0:02:14]}  Bd4 {[%clk 0:01:49]} 18. Bb2 {[%clk 0:02:11]}  Bxb2 {[%clk 0:01:44]} 19. Rxb2 {[%clk 0:02:11]}  Qe5 {[%clk 0:01:45]} 20. Rc2 {[%clk 0:02:11]}  Ncxd5 {[%clk 0:01:41]} 21. Bxd5 {[%clk 0:01:55]}  Nxd5 {[%clk 0:01:41]} 22. Nc4 {[%clk 0:01:47]}  Qxe4 {[%clk 0:01:10]} 23. Rxe4 {[%clk 0:01:34]}  Bxe4 {[%clk 0:01:11]} 24. Qd2 {[%clk 0:01:22]}  Bxc2 {[%clk 0:01:10]} 25. f3 {[%clk 0:01:22]}  Nb4 {[%clk 0:01:02]} 26. Nxd6 {[%clk 0:01:02]}  Re6 {[%clk 0:00:50]} 27. a3 {[%clk 0:00:43]}  Nc6 {[%clk 0:00:46]} 28. Qxc2 {[%clk 0:00:36]}  Rxd6 {[%clk 0:00:45]} 29. Qxc5 {[%clk 0:00:36]}  Rad8 {[%clk 0:00:45]} 30. h4 {[%clk 0:00:34]}  h5 {[%clk 0:00:44]} 31. b4 {[%clk 0:00:34]}  Rd1+ {[%clk 0:00:38]} 32. Kh2 {[%clk 0:00:33]}  Nd4 {[%clk 0:00:34]} 33. Qxa7 {[%clk 0:00:31]}  Nf5 {[%clk 0:00:30]} 34. b5 {[%clk 0:00:18]}  R8d2 {[%clk 0:00:30]} 35. Qb8+ {[%clk 0:00:14]}  Kg7 {[%clk 0:00:27]} 36. Qe5+ {[%clk 0:00:13]}  Kh7 {[%clk 0:00:27]} 37. Qf4 {[%clk 0:00:13]}  Rb2 {[%clk 0:00:20]} 38. a4 {[%clk 0:00:12]}  Rdd2 {[%clk 0:00:20]} 39. Qg5 {[%clk 0:00:12]}  Rdc2 {[%clk 0:00:15]} 40. Kh3 {[%clk 0:00:10]}  Ra2 {[%clk 0:00:16]} 41. Qf6 {[%clk 0:00:08]}  Kg8 {[%clk 0:00:14]} 42. Qd8+ {[%clk 0:00:08]}  Kg7 {[%clk 0:00:14]} 43. Qg5 {[%clk 0:00:03]}  Rxa4 {[%clk 0:00:13]} 0-1


[Site "https://www.chess.com"]